[Event "Titled Tuesday Blitz April 18 Late 2023"]
[White "Moussard, Jules"]
[Black "Di Berardino, Diego Rafael"]
[WhiteFideId "642908"]
[BlackFideId "2105446"]
[WhiteElo "2610"]
[BlackElo "2432"]
[Result "1-0"]
[Round "02"]
[TimeControl "180+2"]
[Date "2023.04.18"]
[WhiteClock "0:00:18"]
[BlackClock "0:00:02"]

1. d4 {[%clk 0:03:00]}  d5 {[%clk 0:02:59]} 2. Nf3 {[%clk 0:03:00]}  Nf6 {[%clk 0:02:59]} 3. Bf4 {[%clk 0:03:00]}  c5 {[%clk 0:02:57]} 4. e3 {[%clk 0:03:00]}  Nc6 {[%clk 0:02:55]} 5. Nbd2 {[%clk 0:02:59]}  cxd4 {[%clk 0:02:53]} 6. exd4 {[%clk 0:03:00]}  Bf5 {[%clk 0:02:49]} 7. c3 {[%clk 0:03:00]}  e6 {[%clk 0:02:49]} 8. Bb5 {[%clk 0:03:00]}  Bd6 {[%clk 0:02:44]} 9. Bxd6 {[%clk 0:03:00]}  Qxd6 {[%clk 0:02:44]} 10. O-O {[%clk 0:03:01]}  O-O {[%clk 0:02:44]} 11. Re1 {[%clk 0:02:56]}  Nd7 {[%clk 0:02:38]} 12. a4 {[%clk 0:02:55]}  h6 {[%clk 0:02:29]} 13. a5 {[%clk 0:02:38]}  a6 {[%clk 0:02:18]} 14. Bf1 {[%clk 0:02:36]}  f6 {[%clk 0:02:14]} 15. Qb3 {[%clk 0:02:30]}  Kh8 {[%clk 0:01:58]} 16. g3 {[%clk 0:02:21]}  e5 {[%clk 0:01:55]} 17. Nh4 {[%clk 0:02:10]}  Bh7 {[%clk 0:01:52]} 18. dxe5 {[%clk 0:01:38]}  fxe5 {[%clk 0:01:51]} 19. Qa3 {[%clk 0:01:32]}  Qf6 {[%clk 0:01:45]} 20. f3 {[%clk 0:01:29]}  g5 {[%clk 0:01:35]} 21. Ng2 {[%clk 0:01:28]}  Rg8 {[%clk 0:01:13]} 22. Ne3 {[%clk 0:01:13]}  Qf7 {[%clk 0:01:01]} 23. Qb3 {[%clk 0:01:10]}  Nf6 {[%clk 0:00:58]} 24. Ng2 {[%clk 0:01:07]}  Raf8 {[%clk 0:00:55]} 25. Qb6 {[%clk 0:01:06]}  d4 {[%clk 0:00:46]} 26. Bc4 {[%clk 0:01:04]}  Nd5 {[%clk 0:00:42]} 27. Qc5 {[%clk 0:01:03]}  Rd8 {[%clk 0:00:39]} 28. Ne4 {[%clk 0:00:50]}  Rgf8 {[%clk 0:00:27]} 29. Nd6 {[%clk 0:00:42]}  Qd7 {[%clk 0:00:12]} 30. Nxb7 {[%clk 0:00:35]}  Nf6 {[%clk 0:00:10]} 31. Nxd8 {[%clk 0:00:33]}  Rxd8 {[%clk 0:00:09]} 32. Rxe5 {[%clk 0:00:31]}  Nxe5 {[%clk 0:00:07]} 33. Qxe5 {[%clk 0:00:32]}  Qg7 {[%clk 0:00:07]} 34. cxd4 {[%clk 0:00:32]}  Re8 {[%clk 0:00:06]} 35. Qd6 {[%clk 0:00:32]}  g4 {[%clk 0:00:06]} 36. fxg4 {[%clk 0:00:23]}  Ne4 {[%clk 0:00:06]} 37. Qb6 {[%clk 0:00:22]}  Rf8 {[%clk 0:00:03]} 38. Bd5 {[%clk 0:00:19]}  Ng5 {[%clk 0:00:02]} 39. Nf4 {[%clk 0:00:19]}  Rxf4 {[%clk 0:00:01]} 40. gxf4 {[%clk 0:00:19]}  Nh3+ {[%clk 0:00:02]} 41. Kh1 {[%clk 0:00:20]}  Qxg4 {[%clk 0:00:02]} 42. Qb8+ {[%clk 0:00:21]}  Kg7 {[%clk 0:00:02]} 43. Qc7+ {[%clk 0:00:19]}  Kh8 {[%clk 0:00:02]} 44. Qd8+ {[%clk 0:00:19]}  Kg7 {[%clk 0:00:02]} 45. Qe7+ {[%clk 0:00:19]}  Kg6 {[%clk 0:00:02]} 46. Qf7# {[%clk 0:00:18]} 1-0


[Site "https://www.chess.com"]

[Event "Titled Tuesday Blitz April 18 Late 2023"]
[White "Sabuk, Piotr"]
[Black "Eljanov, Pavel"]
[WhiteFideId "1137565"]
[BlackFideId "14102951"]
[WhiteElo "2298"]
[BlackElo "2598"]
[Result "0-1"]
[Round "02"]
[TimeControl "180+2"]
[Date "2023.04.18"]
[WhiteClock "0:00:07"]
[BlackClock "0:01:37"]

1. d4 {[%clk 0:03:00]}  Nf6 {[%clk 0:02:58]} 2. c4 {[%clk 0:03:00]}  e6 {[%clk 0:02:59]} 3. Nc3 {[%clk 0:02:59]}  d5 {[%clk 0:02:59]} 4. Nf3 {[%clk 0:02:58]}  Nbd7 {[%clk 0:02:59]} 5. g3 {[%clk 0:02:55]}  dxc4 {[%clk 0:02:54]} 6. Bg2 {[%clk 0:02:55]}  Rb8 {[%clk 0:02:53]} 7. a4 {[%clk 0:02:41]}  b6 {[%clk 0:02:49]} 8. e4 {[%clk 0:02:32]}  Bb7 {[%clk 0:02:46]} 9. Qe2 {[%clk 0:02:32]}  Bb4 {[%clk 0:02:43]} 10. Nd2 {[%clk 0:02:15]}  c5 {[%clk 0:02:35]} 11. Qxc4 {[%clk 0:02:10]}  cxd4 {[%clk 0:02:26]} 12. Qxb4 {[%clk 0:02:06]}  Nc5 {[%clk 0:02:22]} 13. O-O {[%clk 0:02:01]}  a5 {[%clk 0:02:23]} 14. Qb5+ {[%clk 0:01:50]}  Nfd7 {[%clk 0:02:10]} 15. Ncb1 {[%clk 0:00:40]}  Ba6 {[%clk 0:02:09]} 16. Qc6 {[%clk 0:00:40]}  Ke7 {[%clk 0:02:04]} 17. b4 {[%clk 0:00:20]}  Ne5 {[%clk 0:02:00]} 18. Qxc5+ {[%clk 0:00:14]}  bxc5 {[%clk 0:02:00]} 19. b5 {[%clk 0:00:15]}  Bb7 {[%clk 0:01:54]} 20. Ba3 {[%clk 0:00:15]}  Rc8 {[%clk 0:01:51]} 21. Rc1 {[%clk 0:00:15]}  Nd3 {[%clk 0:01:51]} 22. Rc2 {[%clk 0:00:14]}  f5 {[%clk 0:01:44]} 23. exf5 {[%clk 0:00:07]}  Bxg2 {[%clk 0:01:44]} 24. Kxg2 {[%clk 0:00:08]}  Qd5+ {[%clk 0:01:43]} 25. Kg1 {[%clk 0:00:07]}  exf5 {[%clk 0:01:37]} 0-1


[Site "https://www.chess.com"]

[Event "Titled Tuesday Blitz April 18 Late 2023"]
[White "Suder, Jakub"]
[Black "Hakobyan, Aram"]
[WhiteFideId "1195310"]
[BlackFideId "13306677"]
[WhiteElo "2287"]
[BlackElo "2584"]
[Result "0-1"]
[Round "02"]
[TimeControl "180+2"]
[Date "2023.04.18"]
[WhiteClock "0:00:02"]
[BlackClock "0:00:12"]

1. d4 {[%clk 0:03:00]}  Nf6 {[%clk 0:02:59]} 2. c4 {[%clk 0:03:01]}  a6 {[%clk 0:02:59]} 3. Nc3 {[%clk 0:02:58]}  b5 {[%clk 0:02:59]} 4. cxb5 {[%clk 0:02:58]}  axb5 {[%clk 0:03:00]} 5. Nxb5 {[%clk 0:02:58]}  e5 {[%clk 0:02:59]} 6. e3 {[%clk 0:02:49]}  Ne4 {[%clk 0:02:49]} 7. Nc3 {[%clk 0:02:42]}  Bb4 {[%clk 0:02:48]} 8. Ne2 {[%clk 0:02:38]}  O-O {[%clk 0:02:45]} 9. f3 {[%clk 0:02:36]}  exd4 {[%clk 0:02:29]} 10. Qxd4 {[%clk 0:02:33]}  Nxc3 {[%clk 0:02:29]} 11. bxc3 {[%clk 0:02:33]}  Nc6 {[%clk 0:02:29]} 12. Qd2 {[%clk 0:02:19]}  Qf6 {[%clk 0:02:16]} 13. Bb2 {[%clk 0:02:13]}  Bc5 {[%clk 0:02:11]} 14. Nd4 {[%clk 0:02:10]}  Nxd4 {[%clk 0:01:57]} 15. cxd4 {[%clk 0:02:03]}  Bd6 {[%clk 0:01:56]} 16. Bd3 {[%clk 0:01:49]}  Qh6 {[%clk 0:01:38]} 17. f4 {[%clk 0:01:42]}  Bb7 {[%clk 0:01:27]} 18. O-O {[%clk 0:01:41]}  Rfe8 {[%clk 0:01:24]} 19. Bc3 {[%clk 0:01:28]}  Bd5 {[%clk 0:01:15]} 20. a4 {[%clk 0:01:13]}  Re7 {[%clk 0:01:15]} 21. a5 {[%clk 0:01:12]}  Rae8 {[%clk 0:01:16]} 22. Rfe1 {[%clk 0:01:00]}  g5 {[%clk 0:01:16]} 23. a6 {[%clk 0:00:27]}  Qg7 {[%clk 0:01:10]} 24. a7 {[%clk 0:00:20]}  gxf4 {[%clk 0:01:09]} 25. e4 {[%clk 0:00:20]}  Ba8 {[%clk 0:01:04]} 26. d5 {[%clk 0:00:19]}  Qg5 {[%clk 0:00:53]} 27. Bd4 {[%clk 0:00:16]}  Qh5 {[%clk 0:00:49]} 28. Qf2 {[%clk 0:00:15]}  f3 {[%clk 0:00:28]} 29. gxf3 {[%clk 0:00:14]}  f6 {[%clk 0:00:25]} 30. Kh1 {[%clk 0:00:14]}  Be5 {[%clk 0:00:24]} 31. Rg1+ {[%clk 0:00:12]}  Kh8 {[%clk 0:00:24]} 32. Bxe5 {[%clk 0:00:12]}  fxe5 {[%clk 0:00:25]} 33. Rg3 {[%clk 0:00:11]}  c6 {[%clk 0:00:23]} 34. dxc6 {[%clk 0:00:07]}  Bxc6 {[%clk 0:00:24]} 35. Rag1 {[%clk 0:00:07]}  Qf7 {[%clk 0:00:17]} 36. Qe2 {[%clk 0:00:06]}  Rf8 {[%clk 0:00:18]} 37. Bc4 {[%clk 0:00:06]}  d5 {[%clk 0:00:16]} 38. exd5 {[%clk 0:00:06]}  Bxd5 {[%clk 0:00:17]} 39. Bxd5 {[%clk 0:00:06]}  Qxd5 {[%clk 0:00:18]} 40. Qe3 {[%clk 0:00:06]}  Ref7 {[%clk 0:00:14]} 41. Rh3 {[%clk 0:00:03]}  Rxf3 {[%clk 0:00:12]} 42. Rxf3 {[%clk 0:00:03]}  Rxf3 {[%clk 0:00:13]} 43. Qg5 {[%clk 0:00:03]}  Rg3+ {[%clk 0:00:12]} 44. Rg2 {[%clk 0:00:02]}  Qxg2# {[%clk 0:00:12]} 0-1


[Site "https://www.chess.com"]

[Event "Titled Tuesday Blitz April 18 Late 2023"]
[White "Terry, Renato"]
[Black "Janaszak, Dawid"]
[WhiteFideId "3803457"]
[BlackFideId "1119206"]
[WhiteElo "2575"]
[BlackElo "2220"]
[Result "1-0"]
[Round "02"]
[TimeControl "180+2"]
[Date "2023.04.18"]
[WhiteClock "0:00:58"]
[BlackClock "0:00:17"]

1. Nf3 {[%clk 0:02:58]}  Nf6 {[%clk 0:02:59]} 2. d4 {[%clk 0:02:58]}  d5 {[%clk 0:02:59]} 3. c4 {[%clk 0:02:59]}  e6 {[%clk 0:02:59]} 4. Nbd2 {[%clk 0:02:58]}  c5 {[%clk 0:02:59]} 5. dxc5 {[%clk 0:02:58]}  Bxc5 {[%clk 0:03:00]} 6. e3 {[%clk 0:02:58]}  O-O {[%clk 0:02:59]} 7. a3 {[%clk 0:02:59]}  b6 {[%clk 0:02:45]} 8. b4 {[%clk 0:02:58]}  Bd6 {[%clk 0:02:46]} 9. Bb2 {[%clk 0:02:59]}  Bb7 {[%clk 0:02:46]} 10. Be2 {[%clk 0:02:59]}  Nbd7 {[%clk 0:02:46]} 11. O-O {[%clk 0:02:59]}  Rc8 {[%clk 0:02:40]} 12. Rc1 {[%clk 0:02:59]}  Qe7 {[%clk 0:02:35]} 13. cxd5 {[%clk 0:02:56]}  exd5 {[%clk 0:02:28]} 14. Nd4 {[%clk 0:02:48]}  Qe5 {[%clk 0:02:15]} 15. N2f3 {[%clk 0:02:45]}  Qh5 {[%clk 0:02:16]} 16. Rxc8 {[%clk 0:02:35]}  Rxc8 {[%clk 0:02:13]} 17. h3 {[%clk 0:02:24]}  Ne4 {[%clk 0:02:05]} 18. Nb5 {[%clk 0:02:22]}  Bb8 {[%clk 0:01:52]} 19. Ne5 {[%clk 0:02:20]}  Qxe5 {[%clk 0:01:28]} 20. Bxe5 {[%clk 0:02:20]}  Nxe5 {[%clk 0:01:29]} 21. Qa1 {[%clk 0:02:12]}  a6 {[%clk 0:01:28]} 22. Nd4 {[%clk 0:02:11]}  Nc4 {[%clk 0:01:25]} 23. Nf3 {[%clk 0:02:08]}  b5 {[%clk 0:01:16]} 24. a4 {[%clk 0:02:08]}  Bc6 {[%clk 0:01:15]} 25. axb5 {[%clk 0:02:08]}  Bxb5 {[%clk 0:01:13]} 26. Re1 {[%clk 0:02:00]}  h6 {[%clk 0:01:07]} 27. Qd4 {[%clk 0:01:53]}  Nf6 {[%clk 0:00:49]} 28. Rc1 {[%clk 0:01:45]}  Bd6 {[%clk 0:00:46]} 29. e4 {[%clk 0:01:40]}  Bf4 {[%clk 0:00:41]} 30. Rc2 {[%clk 0:01:35]}  Nxe4 {[%clk 0:00:30]} 31. Qxd5 {[%clk 0:01:31]}  Ned6 {[%clk 0:00:29]} 32. Nd4 {[%clk 0:01:27]}  Re8 {[%clk 0:00:20]} 33. g3 {[%clk 0:01:17]}  Re5 {[%clk 0:00:20]} 34. Qa8+ {[%clk 0:01:16]}  Re8 {[%clk 0:00:20]} 35. Qd5 {[%clk 0:01:15]}  Re5 {[%clk 0:00:20]} 36. Qf3 {[%clk 0:01:15]}  Bg5 {[%clk 0:00:18]} 37. Nxb5 {[%clk 0:01:00]}  axb5 {[%clk 0:00:18]} 38. Bd3 {[%clk 0:00:58]}  Re1+ {[%clk 0:00:16]} 39. Kg2 {[%clk 0:00:58]}  Ne5 {[%clk 0:00:17]} 40. Qa8+ {[%clk 0:00:58]} 1-0


[Site "https://www.chess.com"]

[Event "Titled Tuesday Blitz April 18 Late 2023"]
[White "Kleiman, Jake"]
[Black "Gupta, Abhijeet"]
[WhiteFideId "2020041"]
[BlackFideId "5010608"]
[WhiteElo "2608"]
[BlackElo "2528"]
[Result "1-0"]
[Round "02"]
[TimeControl "180+2"]
[Date "2023.04.18"]
[WhiteClock "0:00:04"]
[BlackClock "0:00:01"]

1. e4 {[%clk 0:02:57]}  c5 {[%clk 0:02:59]} 2. c3 {[%clk 0:02:56]}  d5 {[%clk 0:02:57]} 3. exd5 {[%clk 0:02:57]}  Qxd5 {[%clk 0:02:58]} 4. d4 {[%clk 0:02:57]}  Nf6 {[%clk 0:02:57]} 5. Nf3 {[%clk 0:02:58]}  e6 {[%clk 0:02:57]} 6. Na3 {[%clk 0:02:58]}  Nc6 {[%clk 0:02:55]} 7. Be3 {[%clk 0:02:58]}  cxd4 {[%clk 0:02:53]} 8. Nb5 {[%clk 0:02:59]}  Qd8 {[%clk 0:02:53]} 9. Nbxd4 {[%clk 0:03:00]}  Nxd4 {[%clk 0:02:52]} 10. Bxd4 {[%clk 0:03:01]}  Be7 {[%clk 0:02:52]} 11. Bd3 {[%clk 0:03:01]}  O-O {[%clk 0:02:52]} 12. O-O {[%clk 0:03:02]}  Nd5 {[%clk 0:02:46]} 13. Re1 {[%clk 0:03:00]}  b6 {[%clk 0:02:45]} 14. Be4 {[%clk 0:02:58]}  Ba6 {[%clk 0:02:38]} 15. Qa4 {[%clk 0:02:33]}  Bb7 {[%clk 0:02:17]} 16. c4 {[%clk 0:02:28]}  f5 {[%clk 0:02:17]} 17. Bxd5 {[%clk 0:01:52]}  exd5 {[%clk 0:02:15]} 18. Rad1 {[%clk 0:01:51]}  Re8 {[%clk 0:01:58]} 19. cxd5 {[%clk 0:01:38]}  Bd6 {[%clk 0:01:31]} 20. Be5 {[%clk 0:01:34]}  Bxe5 {[%clk 0:01:22]} 21. Nxe5 {[%clk 0:01:26]}  Qd6 {[%clk 0:01:17]} 22. Nc4 {[%clk 0:00:55]}  Qf8 {[%clk 0:01:12]} 23. Qd7 {[%clk 0:00:47]}  Ba6 {[%clk 0:01:12]} 24. b3 {[%clk 0:00:40]}  Rad8 {[%clk 0:01:04]} 25. Qxa7 {[%clk 0:00:38]}  Bxc4 {[%clk 0:00:37]} 26. bxc4 {[%clk 0:00:39]}  Qb4 {[%clk 0:00:37]} 27. Rxe8+ {[%clk 0:00:29]}  Rxe8 {[%clk 0:00:37]} 28. h3 {[%clk 0:00:20]}  Qxc4 {[%clk 0:00:16]} 29. Qxb6 {[%clk 0:00:17]}  Qe2 {[%clk 0:00:12]} 30. Qb3 {[%clk 0:00:15]}  h6 {[%clk 0:00:05]} 31. d6+ {[%clk 0:00:15]}  Kh7 {[%clk 0:00:05]} 32. d7 {[%clk 0:00:14]}  Rd8 {[%clk 0:00:06]} 33. a4 {[%clk 0:00:12]}  Qe5 {[%clk 0:00:06]} 34. Qb5 {[%clk 0:00:10]}  Qe6 {[%clk 0:00:06]} 35. a5 {[%clk 0:00:08]}  f4 {[%clk 0:00:06]} 36. f3 {[%clk 0:00:06]}  Qe3+ {[%clk 0:00:06]} 37. Kh1 {[%clk 0:00:06]}  Qf2 {[%clk 0:00:02]} 38. Qf5+ {[%clk 0:00:06]}  Kh8 {[%clk 0:00:02]} 39. Qxf4 {[%clk 0:00:06]}  Qe2 {[%clk 0:00:01]} 40. Qd4 {[%clk 0:00:05]}  Qe6 {[%clk 0:00:01]} 41. Qd5 {[%clk 0:00:05]}  Qa6 {[%clk 0:00:01]} 42. Qc5 {[%clk 0:00:04]}  Qb7 {[%clk 0:00:01]} 43. Qb6 {[%clk 0:00:04]} 1-0


[Site "https://www.chess.com"]

[Event "Titled Tuesday Blitz April 18 Late 2023"]
[White "Bortnyk, Olexandr"]
[Black "Lizak, Peter"]
[WhiteFideId "14120828"]
[BlackFideId "731595"]
[WhiteElo "2734"]
[BlackElo "2420"]
[Result "1-0"]
[Round "02"]
[TimeControl "180+2"]
[Date "2023.04.18"]
[WhiteClock "0:01:39"]
[BlackClock "0:00:34"]

1. d4 {[%clk 0:03:00]}  Nf6 {[%clk 0:02:57]} 2. Nc3 {[%clk 0:03:00]}  d5 {[%clk 0:02:57]} 3. Bf4 {[%clk 0:03:00]}  e6 {[%clk 0:02:52]} 4. Nb5 {[%clk 0:03:00]}  Bb4+ {[%clk 0:02:50]} 5. c3 {[%clk 0:03:00]}  Ba5 {[%clk 0:02:50]} 6. a4 {[%clk 0:03:01]}  a6 {[%clk 0:02:40]} 7. b4 {[%clk 0:03:01]}  Bxb4 {[%clk 0:01:55]} 8. cxb4 {[%clk 0:03:00]}  axb5 {[%clk 0:01:55]} 9. axb5 {[%clk 0:03:01]}  Rxa1 {[%clk 0:01:54]} 10. Qxa1 {[%clk 0:03:02]}  O-O {[%clk 0:01:50]} 11. e3 {[%clk 0:03:01]}  Nbd7 {[%clk 0:01:45]} 12. Nf3 {[%clk 0:02:53]}  Nh5 {[%clk 0:01:43]} 13. Bg3 {[%clk 0:02:50]}  Nxg3 {[%clk 0:01:36]} 14. hxg3 {[%clk 0:02:51]}  Nf6 {[%clk 0:01:26]} 15. Bd3 {[%clk 0:02:47]}  Bd7 {[%clk 0:01:23]} 16. Ne5 {[%clk 0:02:34]}  h6 {[%clk 0:01:16]} 17. O-O {[%clk 0:02:30]}  Ne8 {[%clk 0:01:04]} 18. Rc1 {[%clk 0:02:21]}  Nd6 {[%clk 0:01:05]} 19. Qa5 {[%clk 0:02:14]}  b6 {[%clk 0:00:56]} 20. Qa6 {[%clk 0:01:55]}  f6 {[%clk 0:00:48]} 21. Ng6 {[%clk 0:01:52]}  Re8 {[%clk 0:00:48]} 22. Qa7 {[%clk 0:01:50]}  Bxb5 {[%clk 0:00:45]} 23. Rxc7 {[%clk 0:01:49]}  Qxc7 {[%clk 0:00:34]} 24. Qxc7 {[%clk 0:01:50]}  Bxd3 {[%clk 0:00:34]} 25. Nf4 {[%clk 0:01:39]} 1-0


[Site "https://www.chess.com"]

[Event "Titled Tuesday Blitz April 18 Late 2023"]
[White "Svane, Frederik"]
[Black "Krishnan, Varun"]
[WhiteFideId "12923044"]
[BlackFideId "5054508"]
[WhiteElo "2502"]
[BlackElo "2605"]
[Result "1-0"]
[Round "02"]
[TimeControl "180+2"]
[Date "2023.04.18"]
[WhiteClock "0:00:11"]
[BlackClock "0:00:01"]

1. g3 {[%clk 0:03:00]}  c5 {[%clk 0:02:53]} 2. Bg2 {[%clk 0:02:59]}  Nc6 {[%clk 0:02:53]} 3. e4 {[%clk 0:02:59]}  g6 {[%clk 0:02:54]} 4. Ne2 {[%clk 0:02:59]}  Bg7 {[%clk 0:02:54]} 5. O-O {[%clk 0:03:00]}  e6 {[%clk 0:02:43]} 6. c3 {[%clk 0:03:00]}  d5 {[%clk 0:02:43]} 7. exd5 {[%clk 0:02:58]}  exd5 {[%clk 0:02:44]} 8. d4 {[%clk 0:02:59]}  cxd4 {[%clk 0:02:43]} 9. Nxd4 {[%clk 0:02:56]}  Nxd4 {[%clk 0:02:42]} 10. cxd4 {[%clk 0:02:57]}  Ne7 {[%clk 0:02:42]} 11. Nc3 {[%clk 0:02:56]}  O-O {[%clk 0:02:42]} 12. Bg5 {[%clk 0:02:54]}  Be6 {[%clk 0:02:37]} 13. Re1 {[%clk 0:02:48]}  Re8 {[%clk 0:02:24]} 14. Qb3 {[%clk 0:02:23]}  h6 {[%clk 0:02:08]} 15. Bxe7 {[%clk 0:02:21]}  Rxe7 {[%clk 0:02:06]} 16. Bxd5 {[%clk 0:02:15]}  Bxd5 {[%clk 0:02:03]} 17. Nxd5 {[%clk 0:02:11]}  Rd7 {[%clk 0:01:55]} 18. Nf4 {[%clk 0:02:11]}  g5 {[%clk 0:01:43]} 19. Nh5 {[%clk 0:01:54]}  Bxd4 {[%clk 0:01:43]} 20. Rad1 {[%clk 0:01:52]}  Rc8 {[%clk 0:01:26]} 21. Rxd4 {[%clk 0:01:11]}  Rxd4 {[%clk 0:01:22]} 22. Re8+ {[%clk 0:01:11]}  Qxe8 {[%clk 0:01:21]} 23. Nf6+ {[%clk 0:01:12]}  Kg7 {[%clk 0:00:54]} 24. Nxe8+ {[%clk 0:01:12]}  Rxe8 {[%clk 0:00:54]} 25. Qxb7 {[%clk 0:01:13]}  Re1+ {[%clk 0:00:49]} 26. Kg2 {[%clk 0:01:13]}  Re2 {[%clk 0:00:49]} 27. Qxa7 {[%clk 0:01:12]}  Rdd2 {[%clk 0:00:49]} 28. a4 {[%clk 0:01:12]}  Rxb2 {[%clk 0:00:48]} 29. a5 {[%clk 0:01:13]}  Ra2 {[%clk 0:00:45]} 30. Qd4+ {[%clk 0:00:57]}  Kg8 {[%clk 0:00:45]} 31. Qd8+ {[%clk 0:00:35]}  Kg7 {[%clk 0:00:44]} 32. Qd4+ {[%clk 0:00:35]}  Kg8 {[%clk 0:00:44]} 33. Kf3 {[%clk 0:00:34]}  Red2 {[%clk 0:00:41]} 34. Qb6 {[%clk 0:00:33]}  Rdb2 {[%clk 0:00:40]} 35. Qxh6 {[%clk 0:00:32]}  Rxa5 {[%clk 0:00:32]} 36. Qf6 {[%clk 0:00:30]}  Rbb5 {[%clk 0:00:31]} 37. Kg4 {[%clk 0:00:27]}  Ra8 {[%clk 0:00:18]} 38. Kh5 {[%clk 0:00:24]}  Rab8 {[%clk 0:00:16]} 39. g4 {[%clk 0:00:20]}  R8b6 {[%clk 0:00:11]} 40. Qd8+ {[%clk 0:00:19]}  Kg7 {[%clk 0:00:11]} 41. Qd4+ {[%clk 0:00:18]}  Kh7 {[%clk 0:00:11]} 42. Qe4+ {[%clk 0:00:15]}  Kg7 {[%clk 0:00:10]} 43. Qd4+ {[%clk 0:00:16]}  Kh7 {[%clk 0:00:10]} 44. Qe4+ {[%clk 0:00:15]}  Rg6 {[%clk 0:00:10]} 45. h4 {[%clk 0:00:15]}  Kg7 {[%clk 0:00:04]} 46. Qd4+ {[%clk 0:00:13]}  Kh7 {[%clk 0:00:04]} 47. Qe4 {[%clk 0:00:12]}  Kg7 {[%clk 0:00:03]} 48. Qd4+ {[%clk 0:00:11]}  Kh7 {[%clk 0:00:04]} 49. Qd3 {[%clk 0:00:10]}  Kg7 {[%clk 0:00:03]} 50. Qxb5 {[%clk 0:00:10]}  gxh4 {[%clk 0:00:02]} 51. Kxh4 {[%clk 0:00:10]}  Rh6+ {[%clk 0:00:01]} 52. Kg3 {[%clk 0:00:11]}  Re6 {[%clk 0:00:01]} 53. f3 {[%clk 0:00:11]}  Rg6 {[%clk 0:00:01]} 54. Qe5+ {[%clk 0:00:11]} 1-0


[Site "https://www.chess.com"]

[Event "Titled Tuesday Blitz April 18 Late 2023"]
[White "Plotnikov, Pavel"]
[Black "Sargsyan, Shant"]
[WhiteFideId "4170342"]
[BlackFideId "13306766"]
[WhiteElo "2298"]
[BlackElo "2628"]
[Result "1-0"]
[Round "02"]
[TimeControl "180+2"]
[Date "2023.04.18"]
[WhiteClock "0:00:12"]
[BlackClock "0:00:02"]

1. e4 {[%clk 0:03:00]}  g6 {[%clk 0:03:00]} 2. d4 {[%clk 0:03:00]}  Nf6 {[%clk 0:03:01]} 3. Nc3 {[%clk 0:02:59]}  d5 {[%clk 0:03:00]} 4. e5 {[%clk 0:02:58]}  Ne4 {[%clk 0:03:01]} 5. Nce2 {[%clk 0:02:58]}  f6 {[%clk 0:03:01]} 6. f3 {[%clk 0:02:54]}  Ng5 {[%clk 0:03:01]} 7. Bxg5 {[%clk 0:02:53]}  fxg5 {[%clk 0:03:02]} 8. Qd2 {[%clk 0:02:45]}  e6 {[%clk 0:03:02]} 9. Nh3 {[%clk 0:02:42]}  Be7 {[%clk 0:02:53]} 10. Nc1 {[%clk 0:02:26]}  c5 {[%clk 0:02:52]} 11. dxc5 {[%clk 0:02:21]}  Nd7 {[%clk 0:02:42]} 12. Bb5 {[%clk 0:02:20]}  O-O {[%clk 0:02:42]} 13. Bxd7 {[%clk 0:02:19]}  Bxd7 {[%clk 0:02:43]} 14. Nd3 {[%clk 0:02:19]}  Bb5 {[%clk 0:02:36]} 15. O-O {[%clk 0:02:12]}  Bxd3 {[%clk 0:02:07]} 16. cxd3 {[%clk 0:02:13]}  Bxc5+ {[%clk 0:02:08]} 17. d4 {[%clk 0:02:13]}  Be7 {[%clk 0:02:08]} 18. Rac1 {[%clk 0:01:59]}  Rf5 {[%clk 0:01:59]} 19. Nf2 {[%clk 0:01:55]}  Qb6 {[%clk 0:01:58]} 20. Ng4 {[%clk 0:01:50]}  Kg7 {[%clk 0:01:58]} 21. g3 {[%clk 0:01:31]}  Raf8 {[%clk 0:01:56]} 22. Kg2 {[%clk 0:01:31]}  h5 {[%clk 0:01:49]} 23. Ne3 {[%clk 0:01:31]}  R5f7 {[%clk 0:01:50]} 24. a3 {[%clk 0:01:26]}  Qb5 {[%clk 0:01:37]} 25. Rc3 {[%clk 0:01:22]}  g4 {[%clk 0:01:36]} 26. f4 {[%clk 0:01:21]}  g5 {[%clk 0:01:29]} 27. f5 {[%clk 0:00:42]}  exf5 {[%clk 0:01:30]} 28. e6 {[%clk 0:00:41]}  Rf6 {[%clk 0:01:22]} 29. Rc7 {[%clk 0:00:39]}  Rxe6 {[%clk 0:01:09]} 30. Rxf5 {[%clk 0:00:20]}  Kg6 {[%clk 0:00:17]} 31. Rxe7 {[%clk 0:00:16]}  Rxe3 {[%clk 0:00:07]} 32. Qxe3 {[%clk 0:00:12]}  Rxf5 {[%clk 0:00:04]} 33. Qe6+ {[%clk 0:00:11]}  Rf6 {[%clk 0:00:03]} 34. Qg8+ {[%clk 0:00:12]}  Kf5 {[%clk 0:00:03]} 35. Qh7+ {[%clk 0:00:12]}  Rg6 {[%clk 0:00:02]} 36. Rf7+ {[%clk 0:00:12]}  Ke4 {[%clk 0:00:01]} 37. Qxg6+ {[%clk 0:00:12]}  Kxd4 {[%clk 0:00:02]} 38. Qf6+ {[%clk 0:00:12]} 1-0


[Site "https://www.chess.com"]

[Event "Titled Tuesday Blitz April 18 Late 2023"]
[White "Sjugirov, Sanan"]
[Black "cryptoguru02"]
[WhiteFideId "4189302"]
[WhiteElo "2569"]
[BlackElo "2603"]
[Result "1-0"]
[Round "02"]
[TimeControl "180+2"]
[Date "2023.04.18"]
[WhiteClock "0:02:33"]
[BlackClock "0:00:37"]

1. d4 {[%clk 0:03:00]}  d5 {[%clk 0:02:58]} 2. c4 {[%clk 0:03:01]}  e6 {[%clk 0:02:58]} 3. Nf3 {[%clk 0:03:02]}  Nf6 {[%clk 0:02:57]} 4. g3 {[%clk 0:03:02]}  Bb4+ {[%clk 0:02:57]} 5. Bd2 {[%clk 0:03:02]}  Be7 {[%clk 0:02:57]} 6. Bg2 {[%clk 0:03:03]}  O-O {[%clk 0:02:56]} 7. O-O {[%clk 0:03:03]}  c6 {[%clk 0:02:56]} 8. Bf4 {[%clk 0:03:03]}  Nh5 {[%clk 0:02:53]} 9. Bc1 {[%clk 0:02:59]}  Nd7 {[%clk 0:02:52]} 10. Qc2 {[%clk 0:02:56]}  f5 {[%clk 0:02:49]} 11. b3 {[%clk 0:02:52]}  Nhf6 {[%clk 0:02:49]} 12. Bb2 {[%clk 0:02:48]}  Ne4 {[%clk 0:02:44]} 13. e3 {[%clk 0:02:46]}  g5 {[%clk 0:02:23]} 14. Nbd2 {[%clk 0:02:46]}  g4 {[%clk 0:02:21]} 15. Ne1 {[%clk 0:02:46]}  Ndf6 {[%clk 0:02:17]} 16. Nd3 {[%clk 0:02:46]}  Nxd2 {[%clk 0:02:10]} 17. Qxd2 {[%clk 0:02:47]}  Ne4 {[%clk 0:02:11]} 18. Qc2 {[%clk 0:02:47]}  Bf6 {[%clk 0:02:04]} 19. Nf4 {[%clk 0:02:45]}  Qe7 {[%clk 0:01:56]} 20. a4 {[%clk 0:02:44]}  Bd7 {[%clk 0:01:55]} 21. Ba3 {[%clk 0:02:44]}  Qf7 {[%clk 0:01:31]} 22. Bxf8 {[%clk 0:02:44]}  Rxf8 {[%clk 0:01:32]} 23. b4 {[%clk 0:02:43]}  a6 {[%clk 0:01:28]} 24. Rab1 {[%clk 0:02:42]}  Nd6 {[%clk 0:01:19]} 25. cxd5 {[%clk 0:02:38]}  exd5 {[%clk 0:01:17]} 26. b5 {[%clk 0:02:37]}  axb5 {[%clk 0:01:13]} 27. axb5 {[%clk 0:02:37]}  Ne4 {[%clk 0:01:03]} 28. bxc6 {[%clk 0:02:37]}  bxc6 {[%clk 0:01:03]} 29. Rb7 {[%clk 0:02:36]}  Bg5 {[%clk 0:00:52]} 30. Nd3 {[%clk 0:02:35]}  Qe8 {[%clk 0:00:47]} 31. Ra1 {[%clk 0:02:35]}  Qc8 {[%clk 0:00:43]} 32. Raa7 {[%clk 0:02:33]}  Rf7 {[%clk 0:00:37]} 33. Ne5 {[%clk 0:02:33]} 1-0


[Site "https://www.chess.com"]